Cogmind - Beta 17 @@@ ROGUE MODE // 2026.06.25 @ 19:59:52 Player: [THREAT] Result: Destroyed by as-03273 with Assembled Heavy Rifle Performance ------------- Evolutions (0) 0 Regions Visited (2) 400 Robots Destroyed (10) 50 Value Destroyed (197) 197 Prototype IDs (1) 20 Alien Tech Used (0) 0 Bonus (5650) 5650 TOTAL SCORE: 6317 Bonus ------- Prayed to X0-1V1 5000 Major X0-1V1 Interference 650 Cogmind --------- Core Integrity 0/200 Matter 254/300 Energy 95/100 System Corruption 1% Temperature Cool (5) Movement Hovering (150) Ox1 Location -10/Mines Parts ------- > --- POWER (1) -------- (None) > --- PROPULSION (2) --- Combat Airjet > --- UTILITY (2) ------ Medium Storage Unit X0-1V1's Piety Tracker > --- WEAPON (2) ------- Light Assault Rifle Light Assault Rifle > --- INVENTORY (10) --- Light Ion Engine Heat Sink Medium Storage Unit Large Storage Unit Launcher Guidance Computer Small Laser Peak State ------------ > --- POWER ------------ (None) > --- PROPULSION ------- Combat Airjet > --- UTILITY ---------- Medium Storage Unit X0-1V1's Piety Tracker > --- WEAPON ----------- Light Assault Rifle > --- INVENTORY -------- Light Ion Engine Heat Sink Medium Storage Unit Large Storage Unit Launcher Guidance Computer Small Laser Light Assault Rifle [Rating: 21] Favorites ----------- Power Ion Engine Engine Ion Engine Propulsion Aluminum Leg Leg Aluminum Leg Hover Unit Combat Airjet Utility Medium Storage Unit Device X0-1V1's Piety Tracker Storage Medium Storage Unit Weapon Light Assault Rifle Energy Gun Small Laser Ballistic Gun Light Assault Rifle Launcher Grenade Launcher Build | -11 -10 -10 ------- Run | Yrd Mat Min Slots Evolved . | . . . Power . | . . . Propulsion . | . . . Utility . | . . . Weapon . | . . . Parts Attached 15 | 7 3 5 Power 3 | 1 . 2 Engine 3 | 1 . 2 Core . | . . . Reactor . | . . . Propulsion 3 | 2 . 1 Treads . | . . . Leg 2 | 2 . . Wheel . | . . . Hover 1 | . . 1 Flight . | . . . Utility 3 | 1 2 . Device 1 | . 1 . Storage 2 | 1 1 . Processor . | . . . Hackware . | . . . Protection . | . . . Artifact . | . . . Weapon 6 | 3 1 2 Energy Gun 3 | 1 . 2 Energy Cannon . | . . . Ballistic Gun 2 | 2 . . Ballistic Cannon . | . . . Launcher 1 | . 1 . Special Weapon . | . . . Impact Weapon . | . . . Slashing Weapon . | . . . Piercing Weapon . | . . . Special Melee Weapon . | . . . Unidentified Prototypes 1 | . 1 . Corrupted Parts 1 | . . 1 System Corruption 1 | . . 1 Parts Lost 6 | . . 6 Power 1 | . . 1 Propulsion 2 | . . 2 Utility . | . . . Weapon 3 | . . 3 Highest Loss Streak 3 | . . 3 To Critical Strikes . | . . . Average Backups 5 | 1 4 7 Power . | . 1 1 Propulsion . | . . . Utility 2 | . 2 3 Weapon 2 | 1 1 3 Tool/Special . | . . . Unused Backups 4 | . . 4 Power . | . . . Propulsion . | . . . Utility 4 | . . 4 Weapon . | . . . Tool/Special . | . . . Average Slot Usage (%) 90 | . 91 87 Engine 12 | . 14 10 Leg 25 | . 28 21 Device 8 | . 6 14 Storage 14 | . 14 14 Energy Gun 1 | . . 5 Ballistic Gun 19 | . 25 10 Launcher 5 | . 2 9 Peak Build Rating 21 | 6 19 21 Average Rating 13 | 5 11 18 On Entrance 8 | . 6 19 Avg Prop Armor Cover (%) . | . . . Naked Turns . | . . . Heaviest Build 20 | 12 20 20 Greatest Support 20 | 20 20 20 Greatest Overweight (x) 1 | . . 1 Average Overweight (x) . | . . . Largest Inventory Capacity 10 | 8 10 10 Average Capacity 9 | 7 9 10 Most Carried 9 | 4 8 9 Average Carried 5 | 1 5 7 Final Capacity 10 | 8 10 10 Final Carried 8 | 2 8 6 Class Distribution -------------------- 100% | Mutant Dominant Class ---------------- Mutant | -10/Materials Mutant | -10/Mines Resources | -11 -10 -10 ----------- Run | Yrd Mat Min Matter Collected 453 | 282 48 123 Remotely . | . . . Salvage Created 441 | 80 290 71 Parts 20 | 2 15 3 Haulers Intercepted 1 | . 1 . Recyclers Shooed 1 | . 1 . Parts Field Recycled . | . . . Retrieved Matter . | . . . Parts Self-Destructed . | . . . Prevented . | . . . Parts Restored . | . . . Kills | -11 -10 -10 ------- Run | Yrd Mat Min Combat Hostiles Destroyed 5 | . 2 3 Guns 3 | . 2 1 AOE 2 | . . 2 Classes Destroyed 7 | 1 4 2 Builder 2 | . 2 . Hauler 1 | . 1 . Recycler 3 | 1 2 . Operator 1 | . 1 . Grunt 2 | . 2 . Demolisher 1 | . . 1 Assembled 2 | . . 2 Best Kill Streak 2 | 1 2 2 Combat Bots Only 2 | . 2 2 Max Kills in Single Turn 2 | 1 2 1 Gunslinging . | . . . Exploded 1 | . . 1 Melee . | . . . Uniques/NPCs Destroyed . | . . . Combat | -11 -10 -10 -------- Run | Yrd Mat Min Hostile Shots Fired 45 | . 11 34 Missed 10 | . 3 7 Hits 35 | . 8 27 Projectile 35 | . 8 27 AOE 13 | . . 13 Critical Strikes 1 | . . 1 Part Disruptions 1 | . . 1 Damage Taken 825 | . 110 715 Core 220 | . 17 203 Absorbed by Shields . | . . . Core Remaining (%) 100 | 100 . . Volleys Fired 43 | 6 20 17 Largest 2 | 2 2 2 Hottest 80 | 40 40 80 Shots Fired 73 | 12 35 26 Gun 65 | 12 30 23 Cannon . | . . . Launcher 8 | . 5 3 Special . | . . . Kinetic 47 | 12 30 5 Thermal 16 | . . 16 Explosive 8 | . 5 3 Electromagnetic 2 | . . 2 Robot Hit Streak 7 | 3 6 7 Robot Miss Streak 2 | 2 2 2 Penetration Max . | . . . Secondary Targets . | . . . Shots Hit Robots 49 | 7 22 20 Core Hits 30 | 3 16 11 Critical Kills 1 | . 1 . Critical Parts Destroyed . | . . . Critical Strikes 1 | . 1 . Destroy 1 | . 1 . Melee Attacks . | . . . Impact . | . . . Slashing . | . . . Piercing . | . . . Sneak Attacks . | . . . Combat Hostiles . | . . . Follow-up Attacks . | . . . Damage Inflicted 871 | 81 434 356 Guns 431 | 72 166 193 Cannons . | . . . Explosions 427 | . 264 163 Melee . | . . . Ramming 13 | 9 4 . Kinetic 283 | 72 166 45 Thermal 124 | . . 124 Explosive 427 | . 264 163 Electromagnetic 24 | . . 24 Impact . | . . . Slashing . | . . . Piercing . | . . . Highest Corruption 1 | . . 1 Average Corruption 1 | . . 1 Corruption Purged . | . . . Corruption Blocked . | . . . Effects 2 | . . 2 Message Errors 1 | . . 1 Matter Fused 1 | . . 1 Overload Shots . | . . . Overflow Damage . | . . . Projectiles . | . . . Explosions . | . . . Melee . | . . . Knockbacks . | . . . Impact . | . . . Kinetic . | . . . Secondary . | . . . Self-Inflicted Damage 69 | . 22 47 Shots 3 | . 1 2 Rammed . | . . . Targets Rammed 3 | 2 1 . Kicked 3 | 2 1 . Crushed . | . . . Highest Temperature 98 | . 12 98 Average Temperature 36 | . 8 42 Received Heat Transfer 168 | . 48 120 Siege Activations . | . . . Martial Activations . | . . . Shielding Activations . | . . . Robots Disrupted . | . . . Combat Hostiles . | . . . Robots Corrupted . | . . . Combat Hostiles . | . . . Parts Fried . | . . . Impact Corruptions . | . . . Robots Melted . | . . . Combat Hostiles . | . . . Parts Melted . | . . . Heat Transferred 275 | . . 275 Parts Sabotaged . | . . . Parts Stolen . | . . . Parts Stripped . | . . . Power Chain Reactions . | . . . Alert | -11 -10 -10 ------- Run | Yrd Mat Min Maximum Alert Level . | . . . Low Security (%) 100 | 100 100 100 Level 1 . | . . . Level 2 . | . . . Level 3 . | . . . Level 4 . | . . . Level 5 . | . . . High Security . | . . . Max Security . | . . . Peak Influence 122 | 5 122 45 Initial 40 | . . 40 Average 13 | . 17 11 Influence Increases 236 | 5 186 45 Destroy 0b10 Robot/C 60 | . 40 20 Destroy 0b10 Robot/NC 35 | 5 30 . Destroy Leader 22 | . 12 10 Disable Machine 45 | . 45 . Destroy Structure 59 | . 59 . Lose Combat Pursuer 15 | . . 15 Influence Decreases 236 | 5 80 151 Entered New Map 66 | . . 66 Time Decay 140 | 5 80 55 Lost Part 30 | . . 30 Squads Dispatched 1 | . 1 . Investigation . | . . . Extermination . | . . . Reinforcement 1 | . 1 . Assault . | . . . Garrison . | . . . Intercept . | . . . Searches Triggered . | . . . Construction Impeded . | . . . Haulers Reinforced . | . . . Active Scanning Responses . | . . . Cargo Convoy Interrupts . | . . . Stealth | -11 -10 -10 --------- Run | Yrd Mat Min Distress Signals 1 | . 1 . Communications Jammed . | . . . Distress Signals . | . . . Times Spotted 26 | . 8 18 Peak Tracking Total 17 | . 3 17 Tactical Retreats 2 | . . 2 Traps | -11 -10 -10 ------- Run | Yrd Mat Min Traps Triggered . | . . . Indirectly . | . . . Trap Hack Attempts . | . . . Triggered . | . . . Disarmed . | . . . Reprogrammed . | . . . Reused . | . . . Traps Extracted . | . . . Installed . | . . . Triggered . | . . . Machines | -11 -10 -10 ---------- Run | Yrd Mat Min Machines Disabled 3 | . 3 . Max in Single Turn 3 | . 3 . Machines Repaired . | . . . Machines Dismantled . | . . . Machines Sabotaged . | . . . Overloaded Fab Kills . | . . . Hacking | -11 -10 -10 --------- Run | Yrd Mat Min Machines Accessed 1 | . 1 . Terminals 1 | . 1 . Fabricators . | . . . Repair Stations . | . . . Recycling Units . | . . . Scanalyzers . | . . . Garrison Access . | . . . Total Hacks 2 | . 2 . Successful 1 | . 1 . Failed 1 | . 1 . Catastrophic . | . . . Database Lockouts . | . . . Manual 4 | . 4 . Terminals 2 | . 2 . Fabricators . | . . . Repair Stations . | . . . Recycling Units . | . . . Scanalyzers . | . . . Garrison Access . | . . . Terminal Hacks . | . . . Fabricator Hacks . | . . . Repair Station Hacks . | . . . Recycling Unit Hacks . | . . . Scanalyzer . | . . . Garrison Access Hacks . | . . . Unauthorized Hacks 1 | . 1 . Terminals 1 | . 1 . Botnet 1 | . 1 . Fabricators . | . . . Repair Stations . | . . . Recycling Units . | . . . Scanalyzers . | . . . Garrison Access . | . . . Data Cores Recovered 1 | . 1 . Used . | . . . Hacking Detections 1 | . 1 . Full Trace Events . | . . . Feedback Events . | . . . Feedback Blocked . | . . . Robot Schematics Acquired . | . . . Robots Built . | . . . Authchips . | . . . Time . | . . . Total Robot Build Rating . | . . . Part Schematics Acquired . | . . . Parts Built . | . . . Authchips . | . . . Time . | . . . Total Part Build Rating . | . . . Part Studies Acquired . | . . . Parts Repaired . | . . . Time . | . . . Parts Recycled . | . . . Recycled Matter . | . . . Retrieved Matter . | . . . Retrieved Components . | . . . Parts Scanalyzed . | . . . Part Schematics Acquired . | . . . Parts Damaged . | . . . Bothacking | -11 -10 -10 ------------ Run | Yrd Mat Min Used RIF Installer . | . . . Robots Hacked . | . . . Non-combat . | . . . Combat . | . . . Robot Hacks Applied . | . . . Relay Couplers Released . | . . . Fabnet Peak Effective % . | . . . Robots Rewired . | . . . Allies Hacked . | . . . Hacks Repelled . | . . . Allies | -11 -10 -10 -------- Run | Yrd Mat Min Total Allies 1 | . . 1 Largest Group 1 | . . 1 Highest-Rated Group 31 | . . 31 Highest-Rated Ally 31 | . . 31 Total Orders . | . . . Ally Attacks 5 | . . 5 Total Damage 43 | . . 43 Kills 1 | . . 1 Allies Corrupted . | . . . Allies Melted . | . . . X0-1V1 Amusement Gains 65 | . 15 50 Good Acts 1 | . . 1 Bad Acts 3 | . . 3 Intel | -11 -10 -10 ------- Run | Yrd Mat Min Active Infowar (turns) . | . . . Robot Analysis Total . | . . . Derelict Logs Recovered 1 | . . 1 Drone Launches . | . . . Drone Recoveries . | . . . Exploration | -11 -10 -10 ------------- Run | Yrd Mat Min Turns Passed 872 | 107 492 273 Spaces Moved 497 | 67 246 184 Core 10 | 10 . . Treads . | . . . Legs 455 | 57 246 152 Wheels . | . . . Hover 32 | . . 32 Flight . | . . . Fastest Speed 50 | 50 120 80 Average Speed 117 | 109 120 117 Slowest Speed 190 | 120 120 190 Overloaded Moves . | . . . Propulsion Burnouts . | . . . Robots Hopped . | . . . Potential Cave-ins 6 | . . 6 Cave-ins Triggered . | . . . Exploration Rate (%) 35 | 5 44 57 Regions Visited 2 Branch Regions 1 Pre-discovered Areas . | . . . Known Exits Taken . | . . . Unknown Exits Taken 2 | 1 1 . Scrap Searched 1 | . . 1 Spaces Dug . | . . . Terrain Destroyed 71 | . 71 . Melee . | . . . Projectile . | . . . AOE 71 | . 71 . Terrain Rammed . | . . . Walls Destroyed . | . . . Machines Disabled . | . . . Actions | -11 -10 -10 --------- Run | Yrd Mat Min Total 717 | 90 413 214 Wait 136 | 1 135 . Move 496 | 67 245 184 Hop . | . . . Pick Up 19 | 8 8 3 Fast Attach . | . . . Attach 12 | 6 2 4 Detach . | . . . Swap 7 | 1 1 5 Drop 2 | . 1 1 Fire 43 | 6 20 17 Melee . | . . . Ram . | . . . Kick 2 | 1 1 . Crush . | . . . Escape Stasis . | . . . Rewire . | . . . Trap . | . . . Miscellaneous . | . . . Route ------- -11/Scrapyard -10/Materials (discovered 3 exits: [*Min x2] / [*Sub]) -10/Mines (discovered 1 exit: [*Mat]) History --------- Turn | Location | Event 2 | -11/Scrapyard | Discovered new exit (range 16) 108 | -11/Scrapyard | Entered Materials 108 | -10/Materials | Discovered new exit (range 7) 275 | -10/Materials | Discovered new exit (range 5) 303 | -10/Materials | Build established: Mutant 373 | -10/Materials | Prayed at D.C.S.S. Altar Unit 414 | -10/Materials | Discovered new exit (range 7) 600 | -10/Materials | Entered Mines 666 | -10/Mines | Ranged accuracy permanently improved by X0-1V1 (+5%; -50 max core) 760 | -10/Mines | Learned Materials garrison access intel 770 | -10/Mines | Assembled infested the area 814 | -10/Mines | X0-1V1 vaporized surrounding terrain (radius 23) 814 | -10/Mines | Discovered new exit (range 15) 826 | -10/Mines | Lost 3 parts (1p1n1w) 836 | -10/Mines | Core integrity fell below 50% 839 | -10/Mines | Core integrity fell below 20% 853 | -10/Mines | Received a Mining Laser from a helpful Derelict 866 | -10/Mines | Lost 3 parts (1n2w) 873 | -10/Mines | Destroyed by as-03273 with Assembled Heavy Rifle Last Messages --------------- have fallen into disrepair." (-24 heat dissipation) as-99058 destroyed. EJESNYUOM|8#LY KUF/24AUM UVR QGKJROF7W3 G8-P40(g): "And why aren't you carrying a mining laser?! Certainly you don't want THEM to uncover you when the ceiling comes crashing down? Here, take my spare." The unstable cave ceiling collapses. G8-P40(g): "You're apparently new around these parts, I'll cover you." U-05 Engineer builds a Wall. as-11150 destroyed. G8-P40(g): "Mining lasers are a lot more useful than you might think..." U-05 Engineer builds a Wall. Heat dissipation returns to normal. G8-P40(g) destroyed. U-05 Engineer builds a Wall. X0-1V1 chortles! Map ----- +----------------------------------------------------+ | ???????????????????????????? #### """ """ #??? | | ??????????????????????????????????# """ """ #??? | | ??????????????????????????????????# #??? | | ??????????????????????????????????# """ """ #??? | | ??????????????????????????????????# """ """ #??? | | ??????????????????????????????????# """ """ #??? | | ??????????????????????????????????# #??? | | ??????????????????????????????????###### #####??? | | ???????????????????????????????????????# #??????? | | ???????????????????????????????????????# #??????? | | ???????????????????????????????????????# #??????? | | ???????????????????????????????????????# #??????? | | ???????????????????????????????????????# #??????? | | ??????????????????????????##???????????# #??????? | | ?????????????????????????? #???????????# #??????? | | ?????????????????????????? #???????????# #??????? | | ???????????????? ????????? #???????????# #??????? | | ??????????????" #????? #???????????# #??????? | | ??? "???? """"" ##??? #???????????# #??????? | | """""""" " "" ##?? ##??????????# #??????? | | " " ### ##?????????# #??????? | | "; "" ## ##????????# #??????? | | ;;;; u ""## #????????# #??????? | | ;; ## #????????# #?####?? | | ; a #?????#???# ## #?? | | ; [ | a @ #????#### ### # #?? | | ;; a! ;;;r ##????# #??? | | ;;;;;; ;;;##????# ## #??? | | #????# ###### #??? | | ###### ###??# #??? | | # ## #### #??? | | # % ;# ## #??? | | # # # ;;;;;;;;; #??? | | "# # # ;; ; ##??? | | ] % ; ####???? | | " ### ; ;*%=;;;; ## ##??????? | | # ## # ; ;; =; ;; #### ##???????? | | ### " " ; ; ;####??# ##????????? | | # " " " ; #?????# ##??##?????? | | " " " ""; #?????# ##?# ##????? | | " " " " #????## ## #????? | | "" """ " ##??### #????? | | "" * ! " #??## """ #????? | | " = " #??# """ ##??? | | " """""" ##?## """ #??? | | " " #?## #??? | | " " #### #??? | | " " #### ## ## #??? | | "" " #?# ##? #?# ##??? | | "" "" """" ##?# ##? ??###???? | +----------------------------------------------------+ Best States ------------- Heat Dissipation 25 Energy Generation 10 Energy Capacity 250 Matter Stores 300 Matter Capacity 300 Sight Range 16 Terrain Scan Density 10 Evasion (%) 55 Item Schematics ----------------- None Robot Schematics ------------------ None Fabricated ------------ Nothing Repaired ---------- Nothing Studied --------- None Alien Tech Used ----------------- None Achievements -------------- Chaos Is Inevitable Challenges ------------ None Game ------ Seed GravityBombPulseblaster Manual? 0 Play Time 00:07:27 Cumulative 79.9 hours Start 2026.06.25 @ 19:52:21 End 2026.06.25 @ 19:59:52 Sessions 1 Manual Loads 0 Difficulty Rogue Special Mode None Game No. 56 Rogue 26 Adventurer 30 Explorer 0 Win Type - Total 1 Types 1/0/0/0/0/0/0/0/0/0 Lore% 29 Gallery% 33 Achievement% 34 Wizard Run 0 Options --------- Layout 2 ASCII 0 Keyboard 0 Movement Numpad Keybinds 0 Fullscreen 1 Font 16/SmallcapsGlow Map View 50x49 Zoom Use 0% Tactical HUD 0 Map Filters NONE Filters NONE Steam 1 RUN: 268d2b9c-466f-4473-accc-751afa7209f5